bitfinex/quotes_BTCUSD_20240623
["timestamp","ask_amount","ask_price","bid_price","bid_amount"]
[1719115734020,3.3367892,64512.0,64511.0,0.39303653]
[1719115734234,3.21427383,64512.0,64511.0,0.39303653]
[1719115734438,3.33718867,64512.0,64511.0,0.39303653]
[1719115734614,3.33718867,64512.0,64511.0,0.38303653]
[1719115734993,3.33718867,64512.0,64511.0,0.39303653]
[1719115736341,0.26128967,64512.0,64511.0,0.39303653]
[1719115736753,3.61196667,64512.0,64511.0,0.39303653]
[1719115736955,3.612096,64512.0,64511.0,0.39303653]
[1719115738253,3.48905183,64512.0,64511.0,0.39303653]
[1719115738437,3.61209661,64512.0,64511.0,0.39303653]
[1719115739258,3.38824861,64512.0,64511.0,0.39303653]
[1719115740216,3.38790063,64512.0,64511.0,0.39303653]
[1719115742234,3.2503758,64512.0,64511.0,0.39303653]
[1719115742439,3.25026511,64512.0,64511.0,0.39303653]
[1719115744020,3.25026792,64512.0,64511.0,0.39303653]
[1719115744198,3.14250492,64512.0,64511.0,0.39303653]
[1719115745685,3.14301295,64512.0,64511.0,0.39303653]
[1719115746671,3.09965895,64512.0,64511.0,0.39303653]
[1719115747656,3.27965895,64512.0,64511.0,0.39303653]
[1719115748627,3.27966594,64512.0,64511.0,0.39303653]
[1719115751725,3.156562,64512.0,64511.0,0.39303653]
[1719115751921,3.27941666,64512.0,64511.0,0.39303653]
[1719115752129,3.27941665,64512.0,64511.0,0.39303653]
[1719115753734,3.27941665,64512.0,64511.0,0.38303653]
[1719115753939,3.43442565,64512.0,64511.0,0.38303653]
[1719115754797,3.311571,64512.0,64511.0,0.38303653]
[1719115755003,3.43473902,64512.0,64511.0,0.38303653]
[1719115755215,3.43473902,64512.0,64511.0,0.39303653]
[1719115755411,3.43473902,64512.0,64511.0,0.38303653]
[1719115756287,3.43473902,64512.0,64511.0,0.39303653]
[1719115756288,3.48663902,64512.0,64511.0,0.39303653]
[1719115758033,3.48690666,64512.0,64511.0,0.39303653]
[1719115760019,3.27999766,64512.0,64511.0,0.39303653]
[1719115760993,3.27974465,64512.0,64511.0,0.39303653]
[1719115761440,3.27974338,64512.0,64511.0,0.39303653]
[1719115763660,3.16251138,64512.0,64511.0,0.39303653]
[1719115764067,3.03933,64512.0,64511.0,0.39303653]
[1719115764262,3.16274604,64512.0,64511.0,0.39303653]
[1719115767296,3.04018,64512.0,64511.0,0.39303653]
[1719115767533,3.16289638,64512.0,64511.0,0.39303653]
[1719115770343,3.04018,64512.0,64511.0,0.39303653]
[1719115770546,3.16286888,64512.0,64511.0,0.39303653]
[1719115770753,3.04018,64512.0,64511.0,0.39303653]
[1719115770956,3.16287466,64512.0,64511.0,0.39303653]
[1719115773531,3.04018,64512.0,64511.0,0.39303653]
[1719115773741,3.1635611,64512.0,64511.0,0.39303653]
[1719115776681,3.16339067,64512.0,64511.0,0.39303653]
[1719115779852,0.00085,64512.0,64511.0,0.39303653]
[1719115780075,3.16339769,64512.0,64511.0,0.39303653]
[1719115780329,3.16339074,64512.0,64511.0,0.39303653]
[1719115781498,3.16388197,64512.0,64511.0,0.39303653]
[1719115782931,3.16388915,64512.0,64511.0,0.39303653]
[1719115786152,3.1639138,64512.0,64511.0,0.39303653]
[1719115787292,3.16386482,64512.0,64511.0,0.39303653]
[1719115789210,3.16423458,64512.0,64511.0,0.46653653]
[1719115789721,3.16423455,64512.0,64511.0,0.46653653]
[1719115792297,3.04018,64512.0,64511.0,0.46653653]
[1719115792726,3.16413578,64512.0,64511.0,0.46653653]
[1719115795535,3.04018,64512.0,64511.0,0.46653653]
[1719115795776,3.16419198,64512.0,64511.0,0.46653653]
[1719115798738,3.16429426,64512.0,64511.0,0.46653653]
[1719115799158,3.16435189,64512.0,64511.0,0.46653653]
[1719115801205,3.16408697,64512.0,64511.0,0.46653653]
[1719115802235,3.16408697,64512.0,64511.0,0.45653653]
[1719115803367,3.21598697,64512.0,64511.0,0.45653653]
[1719115804038,3.21404096,64512.0,64511.0,0.45653653]
[1719115804674,3.21404096,64512.0,64511.0,0.38303653]
[1719115805416,3.36904996,64512.0,64511.0,0.38303653]
[1719115807031,3.3692279,64512.0,64511.0,0.38303653]
[1719115807437,3.32549399,64512.0,64511.0,0.38303653]
[1719115807636,3.36928389,64512.0,64511.0,0.38303653]
[1719115808596,3.36929329,64512.0,64511.0,0.38303653]
[1719115810015,3.557108,64512.0,64511.0,0.38303653]
[1719115810213,3.67929592,64512.0,64511.0,0.38303653]
[1719115810814,3.67929592,64512.0,64511.0,0.28673653]
[1719115811022,3.93741492,64512.0,64511.0,0.28673653]
[1719115811286,3.98931492,64512.0,64511.0,0.28673653]
[1719115811605,3.98931492,64512.0,64511.0,0.27169579]
[1719115811806,3.98931492,64512.0,64511.0,0.28669579]
[1719115812630,3.87794258,64512.0,64511.0,0.28669579]
[1719115812827,3.9054173,64512.0,64511.0,0.28669579]
[1719115813050,4.0604263,64512.0,64511.0,0.28669579]
[1719115813249,4.06031838,64512.0,64511.0,0.28669579]
[1719115816365,3.98208056,64512.0,64511.0,0.28669579]
[1719115816532,4.06059652,64512.0,64511.0,0.28669579]
[1719115816739,3.98208222,64512.0,64511.0,0.28669579]
[1719115816910,4.06059907,64512.0,64511.0,0.28669579]
[1719115817980,4.06059335,64512.0,64511.0,0.28669579]
[1719115819319,4.06064465,64512.0,64511.0,0.28669579]
[1719115823482,4.00874465,64512.0,64511.0,0.28669579]
[1719115823684,4.06064465,64512.0,64511.0,0.28669579]
[1719115824142,4.00874465,64512.0,64511.0,0.28669579]
[1719115824346,4.06064465,64512.0,64511.0,0.28669579]
[1719115824553,3.9211223,64512.0,64511.0,0.28669579]
[1719115825002,3.8692223,64512.0,64511.0,0.28669579]
[1719115825420,3.79870269,64512.0,64511.0,0.28669579]
[1719115825596,3.92270161,64512.0,64511.0,0.28669579]
[1719115827012,3.92276468,64512.0,64511.0,0.28669579]
[1719115827321,3.89528999,64512.0,64511.0,0.28669579]
[1719115827772,3.89613999,64512.0,64511.0,0.28669579]
[1719115828528,3.89609004,64512.0,64511.0,0.28669579]
[1719115829411,4.03558956,64512.0,64511.0,0.28669579]
[1719115830352,3.72557056,64512.0,64511.0,0.28669579]
[1719115831178,0.78128956,64512.0,64511.0,0.28669579]
[1719115831383,3.72557056,64512.0,64511.0,0.28669579]
[1719115831612,0.70198242,64512.0,64511.0,0.28669579]
[1719115831904,0.78130728,64512.0,64511.0,0.28669579]
[1719115832107,3.72558828,64512.0,64511.0,0.28669579]
[1719115832694,3.72558828,64512.0,64511.0,0.37329579]
[1719115834621,3.462059,64512.0,64511.0,0.37329579]
[1719115834954,3.72544597,64512.0,64511.0,0.37329579]
[1719115835125,3.58593865,64512.0,64511.0,0.37329579]
[1719115835354,3.72544597,64512.0,64511.0,0.37329579]
[1719115837789,3.60156632,64512.0,64511.0,0.37329579]
[1719115837972,3.7251581,64512.0,64511.0,0.37329579]
[1719115838188,3.58565078,64512.0,64511.0,0.37329579]
[1719115838352,3.72531154,64512.0,64511.0,0.37329579]
[1719115839225,3.58578317,64512.0,64511.0,0.37329579]
[1719115840979,3.58626873,64512.0,64511.0,0.37329579]
[1719115843940,3.462059,64512.0,64511.0,0.37329579]
[1719115844261,3.5861498,64512.0,64511.0,0.37329579]
[1719115845526,3.58618643,64512.0,64511.0,0.37329579]
[1719115847185,3.58610559,64512.0,64511.0,0.37329579]
[1719115850200,3.462059,64512.0,64511.0,0.37329579]
[1719115850399,3.58606509,64512.0,64511.0,0.37329579]
[1719115852778,3.58514024,64512.0,64511.0,0.37329579]
[1719115853569,3.5851334,64512.0,64511.0,0.37329579]
[1719115854003,3.462059,64512.0,64511.0,0.37329579]
[1719115854174,0.64085238,64512.0,64511.0,0.37329579]
[1719115854523,3.58513338,64512.0,64511.0,0.37329579]
[1719115856538,3.89515238,64512.0,64511.0,0.37329579]
[1719115856734,3.772078,64512.0,64511.0,0.37329579]
[1719115856972,3.89513795,64512.0,64511.0,0.37329579]
[1719115859917,3.772078,64512.0,64511.0,0.37329579]
[1719115860122,3.89502273,64512.0,64511.0,0.37329579]
[1719115860338,3.89502273,64512.0,64511.0,0.35829579]
[1719115860618,3.89502273,64512.0,64511.0,0.37329579]
[1719115862325,3.772078,64512.0,64511.0,0.37329579]
[1719115862502,3.89504677,64512.0,64511.0,0.37329579]
[1719115862759,3.85091698,64512.0,64511.0,0.37329579]
[1719115862886,3.89510193,64512.0,64511.0,0.37329579]
[1719115863292,4.20512093,64512.0,64511.0,0.11913467]
[1719115863491,4.20512093,64512.0,64511.0,0.01989426]
[1719115863492,4.44782391,64512.0,64511.0,0.01989426]
[1719115863694,4.44776952,64512.0,64511.0,0.01989426]
[1719115864484,4.44776952,64512.0,64511.0,0.00089426]
[1719115864975,4.45576952,64512.0,64511.0,0.00089426]
[1719115865186,4.211597,64512.0,64511.0,0.00089426]
[1719115865434,4.46979173,64512.0,64511.0,0.00089426]
[1719115865663,1.53351073,64512.0,64511.0,0.00089426]
[1719115865882,4.47779173,64512.0,64511.0,0.00089426]
[1719115868463,4.47661296,64512.0,64511.0,0.00089426]
[1719115869207,4.48161296,64512.0,64511.0,0.00089426]
[1719115871309,4.63332789,64512.0,64511.0,0.00089426]
[1719115871518,4.63314953,64512.0,64511.0,0.00089426]
[1719115871994,4.63365188,64512.0,64511.0,0.00089426]
[1719115872214,4.62965188,64512.0,64511.0,0.00089426]
[1719115872579,4.63265188,64512.0,64511.0,0.00089426]
[1719115872984,4.62865188,64512.0,64511.0,0.00089426]
[1719115873234,4.63065188,64512.0,64511.0,0.00089426]
[1719115873639,4.62765188,64512.0,64511.0,0.00089426]
[1719115874485,4.62793921,64512.0,64511.0,0.00089426]
[1719115875100,4.62993921,64512.0,64511.0,0.00089426]
[1719115877601,4.62930772,64512.0,64511.0,0.00089426]
[1719115878494,4.63430772,64512.0,64511.0,0.00089426]
[1719115879050,4.62930772,64512.0,64511.0,0.00089426]
[1719115879254,4.62929958,64512.0,64511.0,0.00089426]
[1719115880812,4.93329074,64512.0,64511.0,0.00089426]
[1719115881014,4.93829074,64512.0,64511.0,0.00089426]
[1719115881242,4.67727014,64512.0,64511.0,0.00089426]
[1719115881477,4.93789591,64512.0,64511.0,0.00089426]
[1719115883062,4.78534177,64512.0,64511.0,0.00089426]
[1719115883874,4.78596799,64512.0,64511.0,0.00089426]
[1719115884080,4.90946667,64512.0,64511.0,0.00089426]
[1719115885516,1.085136,64508.0,64507.0,0.009361]
[1719115885741,4.3190703,64508.0,64507.0,0.009361]
[1719115886898,4.44256898,64508.0,64507.0,0.013361]
[1719115887095,4.44202397,64508.0,64507.0,0.013361]
[1719115887933,4.39012397,64508.0,64507.0,0.016361]
[1719115888165,4.44202397,64508.0,64507.0,0.016361]
[1719115888496,4.44202397,64508.0,64507.0,0.013361]
[1719115888697,4.44202397,64508.0,64507.0,0.009361]
[1719115888913,4.44202397,64508.0,64507.0,0.011361]
[1719115889135,4.44202397,64508.0,64507.0,0.013361]
[1719115890293,4.2328962,64508.0,64507.0,0.013361]
[1719115890440,4.44213547,64508.0,64507.0,0.013361]
[1719115890645,4.181317,64508.0,64507.0,0.013361]
[1719115890845,4.4420863,64508.0,64507.0,0.013361]
[1719115893364,4.35617706,64508.0,64507.0,0.013361]
[1719115893548,4.44200239,64508.0,64507.0,0.013361]
[1719115896551,4.44215105,64508.0,64507.0,0.013361]
[1719115898557,4.59874368,64508.0,64507.0,0.013361]
[1719115899540,4.3047653,64508.0,64507.0,0.013361]
[1719115899836,4.59901883,64508.0,64507.0,0.013361]
[1719115900032,4.59888766,64508.0,64507.0,0.013361]
[1719115900239,4.6174478,64508.0,64507.0,0.013361]
[1719115902471,4.46083312,64508.0,64507.0,0.013361]
[1719115903282,4.61749289,64508.0,64507.0,0.013361]
[1719115904351,4.40893312,64508.0,64507.0,0.013361]
[1719115904630,4.18247212,64508.0,64507.0,0.013361]
[1719115904836,4.23437212,64508.0,64507.0,0.013361]
[1719115905894,4.24233217,64508.0,64507.0,0.013361]
[1719115907839,4.19043217,64508.0,64507.0,0.013361]
[1719115908055,4.24233217,64508.0,64507.0,0.013361]
[1719115908971,4.24458599,64508.0,64507.0,0.013361]
[1719115909305,4.24458592,64508.0,64507.0,0.013361]
[1719115911981,3.97341614,64508.0,64507.0,0.013361]
[1719115912212,4.24445194,64508.0,64507.0,0.013361]
[1719115912950,4.19987714,64508.0,64507.0,0.013361]
[1719115913127,4.47073279,64508.0,64507.0,0.013361]
[1719115914074,4.47073279,64508.0,64507.0,0.028361]
[1719115915412,4.19987714,64508.0,64507.0,0.028361]
[1719115915616,4.47203992,64508.0,64507.0,0.028361]
[1719115917252,4.47203992,64508.0,64507.0,0.013361]
[1719115917635,4.47203992,64508.0,64507.0,0.028361]
[1719115918068,4.47203992,64508.0,64507.0,0.013361]
[1719115918532,4.47167058,64508.0,64507.0,0.028361]
[1719115919123,4.65384151,64508.0,64507.0,0.013361]
[1719115920076,4.6533662,64508.0,64507.0,0.013361]
[1719115921151,4.38204807,64508.0,64507.0,0.013361]
[1719115921338,4.65356992,64508.0,64507.0,0.013361]
[1719115924250,4.47157937,64508.0,64507.0,0.013361]
[1719115924451,4.65357469,64508.0,64507.0,0.013361]
[1719115925305,4.47140376,64508.0,64507.0,0.013361]
[1719115927202,4.19987714,64508.0,64507.0,0.013361]
[1719115927378,4.47141472,64508.0,64507.0,0.013361]
[1719115927705,4.47141473,64508.0,64507.0,0.013361]
[1719115928780,4.43543183,64508.0,64507.0,0.013361]
[1719115929904,4.43543183,64508.0,64507.0,0.104561]
[1719115930322,4.16390414,64508.0,64507.0,0.104561]
[1719115930523,4.37998987,64508.0,64507.0,0.104561]
[1719115930823,4.43539448,64508.0,64507.0,0.104561]
[1719115933552,4.43513365,64508.0,64507.0,0.104561]
[1719115934751,4.46772865,64508.0,64507.0,0.104561]
[1719115936521,4.19649914,64508.0,64507.0,0.104561]
[1719115936753,4.46792248,64508.0,64507.0,0.104561]
[1719115936951,4.19649914,64508.0,64507.0,0.104561]
[1719115937150,4.46792327,64508.0,64507.0,0.104561]
[1719115938169,4.46830732,64508.0,64507.0,0.104561]
[1719115939020,4.43230732,64508.0,64507.0,0.104561]
[1719115939595,4.16049914,64508.0,64507.0,0.104561]
[1719115939797,4.4320044,64508.0,64507.0,0.104561]
[1719115942792,4.16049914,64508.0,64507.0,0.104561]
[1719115942998,4.43206514,64508.0,64507.0,0.104561]
[1719115945967,4.16049914,64508.0,64507.0,0.104561]
[1719115946283,4.43233169,64508.0,64507.0,0.104561]
[1719115948968,4.43212161,64508.0,64507.0,0.104561]
[1719115949470,4.41884761,64508.0,64507.0,0.104561]
[1719115949691,4.39884761,64508.0,64507.0,0.104561]
[1719115950095,4.36284761,64508.0,64507.0,0.104561]
[1719115952192,4.36269794,64508.0,64507.0,0.104561]
[1719115955821,4.36283669,64508.0,64507.0,0.104561]
[1719115958434,4.09122514,64508.0,64507.0,0.104561]
[1719115958610,4.36252715,64508.0,64507.0,0.104561]
[1719115961453,4.06715014,64508.0,64507.0,0.104561]
[1719115961659,4.26697953,64508.0,64507.0,0.104561]
[1719115961831,4.34471849,64508.0,64507.0,0.013361]
[1719115962039,4.39661849,64508.0,64507.0,0.013361]
[1719115963429,4.34471849,64508.0,64507.0,0.101061]
[1719115963630,4.39661849,64508.0,64507.0,0.101061]
[1719115964160,4.34471849,64508.0,64507.0,0.101061]
[1719115964360,4.39661849,64508.0,64507.0,0.101061]
[1719115964568,4.12559883,64508.0,64507.0,0.101061]
[1719115964885,4.39729157,64508.0,64507.0,0.101061]
[1719115965087,4.30816106,64508.0,64507.0,0.101061]
[1719115965296,4.39798697,64508.0,64507.0,0.101061]
[1719115965646,4.61685897,64508.0,64507.0,0.101061]
[1719115966569,4.47226528,64508.0,64507.0,0.101061]
[1719115967653,4.19987714,64508.0,64507.0,0.101061]
[1719115967861,4.47222591,64508.0,64507.0,0.101061]
[1719115970836,4.19987714,64508.0,64507.0,0.101061]
[1719115971154,4.47229871,64508.0,64507.0,0.101061]
[1719115973052,4.19987714,64508.0,64507.0,0.101061]
[1719115973390,4.47229348,64508.0,64507.0,0.101061]
[1719115974181,4.47225611,64508.0,64507.0,0.101061]
[1719115976012,4.47225611,64508.0,64507.0,0.173361]
[1719115976350,4.47225611,64508.0,64507.0,0.188361]
[1719115976732,4.42035611,64508.0,64507.0,0.188361]
[1719115976973,2.84464026,64508.0,64507.0,0.28760141]
[1719115977190,2.61274621,64508.0,64507.0,0.28760141]
[1719115977363,2.61206434,64508.0,64507.0,0.28760141]
[1719115979806,2.56016434,64508.0,64507.0,0.28760141]
[1719115979999,2.61206434,64508.0,64507.0,0.28760141]
[1719115980301,2.46719914,64508.0,64507.0,0.28760141]
[1719115980539,2.61189057,64508.0,64507.0,0.28760141]
[1719115982692,2.61198618,64508.0,64507.0,0.28760141]
[1719115983144,2.61185815,64508.0,64507.0,0.28760141]
[1719115983347,2.75651716,64508.0,64507.0,0.28760141]
[1719115984344,2.89591048,64508.0,64507.0,0.28760141]
[1719115985799,2.84401048,64508.0,64507.0,0.28760141]
[1719115986093,2.89591048,64508.0,64507.0,0.28760141]
[1719115987239,2.75125147,64508.0,64507.0,0.28760141]
[1719115988268,2.61185815,64508.0,64507.0,0.28760141]
[1719115988993,2.61279857,64508.0,64507.0,0.28760141]
[1719115989256,2.56089857,64508.0,64507.0,0.28760141]
[1719115989489,2.61279857,64508.0,64507.0,0.28760141]
[1719115991872,2.46719914,64508.0,64507.0,0.28760141]
[1719115992108,2.6127271,64508.0,64507.0,0.28760141]
[1719115992412,2.61269139,64508.0,64507.0,0.28760141]
[1719115994955,2.46719914,64508.0,64507.0,0.28760141]
[1719115995160,2.61296104,64508.0,64507.0,0.28760141]
[1719115998220,2.6129573,64508.0,64507.0,0.28760141]
[1719115999688,2.5610573,64508.0,64507.0,0.28760141]
[1719115999895,2.6129573,64508.0,64507.0,0.28760141]
[1719116001618,2.46719914,64508.0,64507.0,0.28760141]
[1719116001831,2.61307317,64508.0,64507.0,0.28760141]
[1719116002539,2.61300894,64508.0,64507.0,0.28760141]
[1719116002934,2.61300891,64508.0,64507.0,0.28760141]
[1719116004215,2.46719914,64508.0,64507.0,0.28760141]
[1719116004409,2.6125312,64508.0,64507.0,0.28760141]
[1719116005258,2.29014114,64508.0,64507.0,0.28760141]
[1719116006054,2.60018014,64508.0,64507.0,0.28760141]
[1719116007460,2.45484808,64508.0,64507.0,0.28760141]
[1719116007657,2.60037742,64508.0,64507.0,0.28760141]
[1719116008650,3.71297742,64508.0,64507.0,0.28760141]
[1719116008872,3.64345442,64508.0,64507.0,0.28760141]
[1719116009110,3.69535442,64508.0,64507.0,0.28760141]
[1719116010744,3.69573314,64508.0,64507.0,0.28760141]
[1719116010885,3.54982508,64508.0,64507.0,0.28760141]
[1719116011089,3.69573313,64508.0,64507.0,0.28760141]
[1719116012113,3.69498499,64508.0,64507.0,0.28760141]
[1719116013584,3.69498336,64508.0,64507.0,0.28760141]
[1719116016191,3.83431241,64508.0,64507.0,0.28760141]
[1719116016764,3.83436793,64508.0,64507.0,0.28760141]
[1719116019149,3.69499981,64508.0,64507.0,0.28760141]
[1719116019990,3.69511269,64508.0,64507.0,0.28760141]
[1719116020146,3.82182163,64508.0,64507.0,0.28760141]
[1719116020348,3.85986408,64508.0,64507.0,0.28760141]
[1719116020591,4.13208196,64508.0,64507.0,0.28760141]
[1719116021011,3.82204296,64508.0,64507.0,0.28760141]
[1719116021215,3.9789232,64508.0,64507.0,0.28760141]
[1719116021637,3.97896743,64508.0,64507.0,0.28760141]
[1719116022129,4.28900643,64508.0,64507.0,0.28760141]
[1719116022878,3.85986408,64508.0,64507.0,0.28760141]
[1719116023081,4.28910853,64508.0,64507.0,0.28760141]
[1719116025959,3.85986408,64508.0,64507.0,0.28760141]
[1719116026168,4.28872316,64508.0,64507.0,0.28760141]
[1719116027241,4.1317944,64508.0,64507.0,0.28760141]
[1719116027455,4.28872316,64508.0,64507.0,0.28760141]
[1719116029228,4.23696593,64508.0,64507.0,0.28760141]
[1719116029433,4.28886593,64508.0,64507.0,0.28760141]
[1719116029609,4.28886153,64508.0,64507.0,0.28760141]
[1719116030816,4.28885594,64508.0,64507.0,0.28760141]
[1719116032418,4.30710356,64508.0,64507.0,0.28760141]
[1719116032647,4.37824136,64508.0,64507.0,0.28760141]
[1719116033267,3.94950264,64508.0,64507.0,0.28760141]
[1719116033396,4.37822019,64508.0,64507.0,0.28760141]
[1719116035222,4.22132534,64508.0,64507.0,0.28760141]
[1719116035466,3.94950264,64508.0,64507.0,0.28760141]
[1719116035711,4.22173172,64508.0,64507.0,0.28760141]
[1719116037894,1.29507372,64508.0,64507.0,0.28760141]
[1719116038325,4.11256859,64508.0,64507.0,0.28760141]
[1719116038726,4.23906177,64508.0,64507.0,0.28760141]
[1719116041188,3.96712564,64508.0,64507.0,0.28760141]
[1719116041356,4.2390235,64508.0,64507.0,0.28760141]
[1719116047364,3.96712564,64508.0,64507.0,0.28760141]
[1719116047555,4.23944915,64508.0,64507.0,0.28760141]
[1719116048735,4.24029915,64508.0,64507.0,0.28760141]
[1719116048960,4.15066059,64508.0,64507.0,0.28760141]
[1719116049570,4.30753479,64508.0,64507.0,0.28760141]
[1719116050346,4.25207964,64508.0,64507.0,0.28760141]
[1719116050708,4.30792625,64508.0,64507.0,0.28760141]
[1719116052135,4.15105001,64508.0,64507.0,0.28760141]
[1719116053372,3.87833708,64508.0,64507.0,0.28760141]
[1719116053579,4.02405743,64508.0,64507.0,0.28760141]
[1719116053781,4.15095975,64508.0,64507.0,0.28760141]
[1719116056674,4.15076437,64508.0,64507.0,0.28760141]
[1719116057104,3.87833708,64508.0,64507.0,0.28760141]
[1719116057310,4.15068366,64508.0,64507.0,0.28760141]
[1719116058295,4.1500646,64508.0,64507.0,0.28760141]
[1719116059065,4.4601036,64508.0,64507.0,0.27260141]
[1719116059676,4.40407907,64508.0,64507.0,0.20030141]
[1719116059891,4.45927317,64508.0,64507.0,0.20030141]
[1719116060305,4.40737317,64508.0,64507.0,0.20030141]
[1719116060510,4.45927317,64508.0,64507.0,0.11260141]
[1719116062906,4.46052393,64508.0,64507.0,0.11260141]
[1719116065991,4.18837608,64508.0,64507.0,0.11260141]
[1719116066210,4.46037071,64508.0,64507.0,0.11260141]
[1719116066414,4.24396633,64508.0,64507.0,0.11260141]
[1719116066635,4.46037078,64508.0,64507.0,0.11260141]
[1719116067182,4.46037078,64508.0,64507.0,0.09260141]
[1719116067702,4.18837608,64508.0,64507.0,0.09260141]
[1719116067913,4.46051042,64508.0,64507.0,0.09260141]
[1719116069158,4.18837608,64508.0,64507.0,0.09260141]
[1719116069314,4.67703813,64508.0,64507.0,0.09260141]
[1719116069511,4.46053109,64508.0,64507.0,0.09260141]
[1719116069740,1.51625009,64508.0,64507.0,0.09260141]
[1719116069938,4.46053109,64508.0,64507.0,0.09260141]
[1719116070712,4.40863109,64508.0,64507.0,0.10760141]
[1719116070918,4.46053109,64508.0,64507.0,0.10760141]
[1719116072080,4.46053109,64508.0,64507.0,0.09260141]
[1719116072291,4.4617507,64508.0,64507.0,0.09260141]
[1719116075276,4.18837608,64508.0,64507.0,0.09260141]
[1719116075510,4.460424,64508.0,64507.0,0.09260141]
[1719116075714,4.18837608,64508.0,64507.0,0.09260141]
[1719116075917,4.460424,64508.0,64507.0,0.09260141]
[1719116076195,0.77512,64506.0,64505.0,0.11008198]
[1719116076423,4.12160182,64506.0,64505.0,0.11008198]
[1719116076567,1.17732082,64506.0,64505.0,0.11008198]
[1719116076770,4.43164982,64506.0,64505.0,0.11008198]
[1719116076979,4.55838059,64506.0,64505.0,0.11008198]
[1719116078435,4.55906536,64506.0,64505.0,0.11508198]
[1719116079460,4.40318204,64506.0,64505.0,0.11908198]
[1719116079622,4.56006203,64506.0,64505.0,0.11908198]
[1719116080660,4.56006203,64506.0,64505.0,0.12001698]
[1719116081535,4.55960292,64506.0,64505.0,0.12001698]
[1719116084514,4.55960292,64506.0,64505.0,0.02741557]
[1719116084735,4.55960292,64506.0,64505.0,0.10501698]
[1719116084736,4.40235847,64506.0,64505.0,0.10501698]
[1719116085116,4.4024085,64506.0,64505.0,0.12001698]
[1719116085709,4.3024085,64506.0,64505.0,0.12001698]
[1719116086125,4.45928986,64506.0,64505.0,0.12001698]
[1719116086295,4.45934946,64506.0,64505.0,0.12001698]
[1719116089723,4.55934946,64506.0,64505.0,0.12001698]
[1719116090717,4.130449,64506.0,64505.0,0.12001698]
[1719116090917,4.5600265,64506.0,64505.0,0.12001698]
[1719116092935,4.6119265,64506.0,64505.0,0.21141698]
[1719116093563,4.33923487,64506.0,64505.0,0.21141698]
[1719116093766,4.61189564,64506.0,64505.0,0.21141698]
[1719116093973,4.182349,64506.0,64505.0,0.21141698]
[1719116094167,4.61192074,64506.0,64505.0,0.21141698]
[1719116094610,4.39507197,64506.0,64505.0,0.21141698]
[1719116094809,4.45503302,64506.0,64505.0,0.21141698]
[1719116097169,4.3995218,64506.0,64505.0,0.21141698]
[1719116097353,4.45553779,64506.0,64505.0,0.21141698]
[1719116099665,4.14548979,64506.0,64505.0,0.28371698]
[1719116100060,4.09359076,64506.0,64505.0,0.28371698]
[1719116100265,4.14549076,64506.0,64505.0,0.28371698]
[1719116100456,4.14630454,64506.0,64505.0,0.28371698]
[1719116100753,4.45635254,64506.0,64505.0,0.28371698]
[1719116102859,4.45509209,64506.0,64505.0,0.28371698]
[1719116103267,4.182349,64506.0,64505.0,0.28371698]
[1719116103395,4.45509175,64506.0,64505.0,0.28371698]
[1719116103923,4.09314375,64506.0,64505.0,0.28371698]
[1719116104235,4.14504375,64506.0,64505.0,0.28371698]
[1719116104694,4.01810525,64506.0,64505.0,0.28371698]
[1719116105509,4.32815325,64506.0,64505.0,0.28371698]
[1719116108930,1.44040843,64506.0,64505.0,0.28371698]
[1719116109131,4.47485498,64506.0,64505.0,0.28371698]
[1719116110829,4.32860199,64506.0,64505.0,0.28371698]
[1719116111926,4.182349,64506.0,64505.0,0.28371698]
[1719116112115,4.3289053,64506.0,64505.0,0.28371698]
[1719116112327,4.27266327,64506.0,64505.0,0.28371698]
[1719116112571,4.3289053,64506.0,64505.0,0.28371698]
[1719116115233,4.32888062,64506.0,64505.0,0.28371698]
[1719116118439,4.32888209,64506.0,64505.0,0.28371698]
[1719116120668,4.328892,64506.0,64505.0,0.28371698]
[1719116121218,4.182349,64506.0,64505.0,0.28371698]
[1719116121415,4.32889206,64506.0,64505.0,0.28371698]
[1719116121825,4.32888762,64506.0,64505.0,0.28371698]
[1719116124241,4.4561518,64506.0,64505.0,0.28371698]
[1719116124446,4.182349,64506.0,64505.0,0.28371698]
[1719116124580,4.45613608,64506.0,64505.0,0.28371698]
[1719116127774,4.45614809,64506.0,64505.0,0.28371698]
[1719116130710,4.182349,64506.0,64505.0,0.28371698]
[1719116130933,4.45614616,64506.0,64505.0,0.28371698]
[1719116131131,4.182349,64506.0,64505.0,0.28371698]
[1719116131350,4.45614616,64506.0,64505.0,0.28371698]
[1719116132388,3.88527692,64506.0,64505.0,0.28371698]
[1719116132575,4.15912416,64506.0,64505.0,0.28371698]
[1719116132869,4.46917216,64506.0,64505.0,0.28371698]
[1719116133817,4.46916753,64506.0,64505.0,0.28371698]
[1719116136807,4.39867553,64506.0,64505.0,0.28371698]
[1719116136974,4.25208849,64506.0,64505.0,0.28371698]
[1719116137203,4.39863084,64506.0,64505.0,0.28371698]
[1719116138605,4.46912284,64506.0,64505.0,0.28371698]
[1719116138808,4.15907484,64506.0,64505.0,0.28371698]
[1719116140159,4.15906885,64506.0,64505.0,0.28371698]
[1719116140599,3.88527692,64506.0,64505.0,0.28371698]
[1719116140753,4.15906885,64506.0,64505.0,0.28371698]
[1719116141888,4.15907692,64506.0,64505.0,0.28371698]
[1719116142655,4.08110092,64506.0,64505.0,0.28371698]
[1719116143352,4.08109415,64506.0,64505.0,0.28371698]
[1719116146001,4.23803392,64506.0,64505.0,0.28371698]
[1719116146407,3.80730092,64506.0,64505.0,0.28371698]
[1719116146604,4.08104024,64506.0,64505.0,0.28371698]
[1719116146815,3.84125724,64506.0,64505.0,0.26871698]
[1719116147433,3.84125724,64506.0,64505.0,0.28371698]
[1719116147822,3.99821255,64506.0,64505.0,0.28371698]
[1719116148103,3.99821255,64506.0,64505.0,0.21141698]
[1719116149379,3.56751792,64506.0,64505.0,0.21141698]
[1719116149584,3.94047977,64506.0,64505.0,0.21141698]
[1719116149747,3.99583,64506.0,64505.0,0.21141698]
[1719116149932,4.30587798,64506.0,64505.0,0.19641698]
[1719116150334,4.30587798,64506.0,64505.0,0.01241557]
[1719116150652,4.15120059,64506.0,64505.0,0.01241557]
[1719116152498,4.1506943,64506.0,64505.0,0.01241557]
[1719116152669,4.1483943,64506.0,64505.0,0.01241557]
[1719116153711,3.96702731,64506.0,64505.0,0.01241557]
[1719116153916,4.14888728,64506.0,64505.0,0.01241557]
[1719116155782,4.15347047,64506.0,64505.0,0.01241557]
[1719116156338,4.14847047,64506.0,64505.0,0.01241557]
[1719116156799,4.15347047,64506.0,64505.0,0.01241557]
[1719116158759,4.14847047,64506.0,64505.0,0.01241557]
[1719116158956,4.14857234,64506.0,64505.0,0.01241557]
[1719116159386,4.14855615,64506.0,64505.0,0.01241557]
[1719116162259,4.15359223,64506.0,64505.0,0.01241557]
[1719116162836,4.15089223,64506.0,64505.0,0.01241557]
[1719116163151,4.15589223,64506.0,64505.0,0.01241557]
[1719116163368,4.46594023,64506.0,64505.0,0.01241557]